bitfinex-derivatives/quotes_SOLF0:USTF0_20250501
["timestamp","ask_amount","ask_price","bid_price","bid_amount"]
[1746117206839,30.2329,152.55,152.48,1.9433]
[1746117207742,30.2329,152.55,152.51,6.5543]
[1746117208327,6.5534,152.54,152.51,6.5543]
[1746117208738,23.68,152.55,152.5,6.5548]
[1746117209136,23.68,152.55,152.48,1.9433]
[1746117209439,23.68,152.55,152.47,12.09942517]
[1746117209440,1.20472405,152.54,152.45,12.09942517]
[1746117209733,6.5551,152.5,152.46,6.5565]
[1746117209941,6.5551,152.5,152.45,12.09942517]
[1746117210534,6.5551,152.5,152.46,6.5565]
[1746117210737,6.5555,152.49,152.46,6.5565]
[1746117210929,6.5555,152.49,152.45,6.557]
[1746117211141,23.68,152.51,152.43,23.68]
[1746117211338,6.5561,152.48,152.43,23.68]
[1746117211533,6.5561,152.48,152.44,6.5573]
[1746117212138,6.5561,152.48,152.45,6.5571]
[1746117212540,6.5556,152.49,152.42,6.1561]
[1746117212735,6.5556,152.49,152.46,6.5565]
[1746117213247,23.68,152.51,152.42,6.1561]
[1746117213945,23.68,152.51,152.5,6.555]
[1746117214644,23.68,152.51,152.45,23.68]
[1746117215248,30.2349,152.51,152.49,6.5552]
[1746117216345,6.5555,152.49,152.45,23.68]
[1746117216551,23.68,152.51,152.45,23.68]
[1746117216743,23.68,152.51,152.42,29.8361]
[1746117217148,6.555,152.5,152.47,6.556]
[1746117217448,6.555,152.5,152.42,29.8361]
[1746117218038,6.5556,152.49,152.42,29.8361]
[1746117218242,23.68,152.51,152.42,29.8361]
[1746117218439,6.5553,152.5,152.47,6.5561]
[1746117218650,23.68,152.51,152.42,29.8361]
[1746117219149,30.2349,152.51,152.42,29.8361]
[1746117219338,30.2349,152.51,152.42,6.1561]
[1746117219539,23.68,152.51,152.42,29.8361]
[1746117219752,23.68,152.51,152.42,6.1561]
[1746117219959,23.68,152.51,152.42,29.8361]
[1746117220152,30.2348,152.51,152.48,6.5558]
[1746117221155,30.2348,152.51,152.47,6.5561]
[1746117222253,30.2348,152.51,152.48,6.5558]
[1746117222454,6.5553,152.5,152.42,41.93552517]
[1746117222656,23.68,152.51,152.42,41.93552517]
[1746117224156,30.2346,152.51,152.49,6.5553]
[1746117224556,23.68,152.51,152.49,6.5553]
[1746117224751,23.68,152.51,152.48,6.5557]
[1746117225148,30.2348,152.51,152.42,41.93552517]
[1746117225451,30.2348,152.51,152.47,6.5559]
[1746117225652,30.2348,152.51,152.42,41.93552517]
[1746117226254,30.2348,152.51,152.48,6.5557]
[1746117227158,6.555,152.5,152.47,6.5561]
[1746117228557,30.2348,152.51,152.47,6.5561]
[1746117228958,23.68,152.51,152.47,6.5561]
[1746117229153,23.68,152.51,152.48,6.5559]
[1746117229563,30.2349,152.51,152.48,6.5559]
[1746117229762,23.68,152.51,152.47,6.5561]
[1746117230262,30.2348,152.51,152.48,6.5558]
[1746117231061,6.5551,152.5,152.47,6.5561]
[1746117231364,23.68,152.51,152.42,41.93552517]
[1746117231661,6.5555,152.49,152.46,6.5565]
[1746117232664,23.68,152.51,152.42,41.93552517]
[1746117233564,6.5555,152.49,152.46,6.5565]
[1746117234168,23.68,152.51,152.42,41.93552517]
[1746117234366,23.68,152.51,152.45,12.09942517]
[1746117235574,23.68,152.51,152.5,6.555]
[1746117235773,23.68,152.51,152.45,12.09942517]
[1746117235969,30.2346,152.51,152.49,6.5553]
[1746117236177,23.68,152.51,152.49,6.5553]
[1746117236777,23.68,152.51,152.5,6.555]
[1746117238673,23.66,152.54,152.45,12.09942517]
[1746117238873,23.66,152.54,152.46,23.66]
[1746117239276,23.66,152.54,152.51,6.5543]
[1746117239584,30.2135,152.54,152.51,6.5543]
[1746117240075,23.66,152.54,152.52,6.5542]
[1746117241979,30.2133,152.54,152.51,6.5544]
[1746117243181,23.66,152.54,152.47,3.9638]
[1746117243381,23.66,152.54,152.47,5.8981]
[1746117243680,23.66,152.54,152.52,6.5538]
[1746117243875,23.66,152.54,152.47,5.8981]
[1746117244784,23.66,152.54,152.52,6.554]
[1746117247683,30.2122,152.57,152.48,12.09942517]
[1746117248189,23.66,152.57,152.48,12.09942517]
[1746117248381,23.66,152.57,152.51,12.09942517]
[1746117248582,23.66,152.57,152.52,2.0673]
[1746117248781,23.66,152.57,152.55,6.5527]
[1746117249185,23.66,152.57,152.55,6.5528]
[1746117250089,23.66,152.57,152.56,6.5525]
[1746117250686,23.66,152.57,152.55,6.5528]
[1746117251788,30.2121,152.57,152.54,6.5531]
[1746117252683,23.66,152.57,152.52,6.5541]
[1746117252890,35.75942517,152.57,152.48,2.0111]
[1746117253288,1.9761,152.56,152.47,25.6344]
[1746117253492,1.9761,152.56,152.47,1.9744]
[1746117253882,6.5535,152.54,152.47,1.9744]
[1746117254284,6.5531,152.55,152.51,6.5543]
[1746117254484,6.5531,152.55,152.47,1.9744]
[1746117254790,6.5534,152.54,152.5,6.5547]
[1746117255088,6.5534,152.54,152.47,1.9744]
[1746117255592,1.9761,152.56,152.47,1.9744]
[1746117255891,23.66,152.57,152.47,1.9744]
[1746117256085,6.5531,152.55,152.47,1.9744]
[1746117256591,23.66,152.57,152.47,1.9744]
[1746117256886,6.5535,152.54,152.47,1.9744]
[1746117257284,6.5535,152.54,152.51,6.5543]
[1746117260794,23.66,152.57,152.52,6.554]
[1746117261389,6.5527,152.56,152.52,6.554]
[1746117261591,23.66,152.57,152.47,1.9744]
[1746117261987,6.5527,152.56,152.47,1.9744]
[1746117262192,23.66,152.57,152.47,1.9744]
[1746117262496,23.66,152.57,152.48,35.75942517]
[1746117262699,23.66,152.57,152.48,37.68972517]
[1746117262993,23.66,152.57,152.54,6.553]
[1746117263195,23.66,152.57,152.49,2.0711]
[1746117263496,23.66,152.57,152.55,6.5527]
[1746117263794,23.66,152.57,152.49,2.0711]
[1746117263992,23.66,152.57,152.56,6.5525]
[1746117266192,23.66,152.57,152.55,6.5527]
[1746117267198,23.66,152.57,152.56,6.5525]
[1746117269198,23.66,152.57,152.55,6.5527]
[1746117269400,23.66,152.57,152.51,12.09942517]
[1746117270202,23.66,152.57,152.56,6.5525]
[1746117271102,23.66,152.57,152.55,6.5527]
[1746117271802,23.66,152.57,152.56,6.5525]
[1746117273703,551.3767,152.6,152.51,12.09942517]
[1746117273903,551.3767,152.6,152.52,1.9683]
[1746117274202,30.191,152.6,152.52,25.6083]
[1746117274413,30.191,152.6,152.57,6.5518]
[1746117274702,30.191,152.6,152.52,25.6083]
[1746117275507,23.64,152.6,152.52,25.6083]
[1746117275698,23.64,152.6,152.54,12.09942517]
[1746117275894,23.64,152.63,152.57,12.09942517]
[1746117276096,23.64,152.63,152.62,6.5499]
[1746117277507,23.64,152.63,152.61,6.5501]
[1746117278305,30.1895,152.63,152.6,6.5505]
[1746117278506,23.64,152.63,152.56,23.64]
[1746117278800,30.1896,152.63,152.56,23.64]
[1746117279195,23.64,152.63,152.56,23.64]
[1746117279393,6.5502,152.62,152.56,23.64]
[1746117280105,6.5502,152.62,152.59,6.5511]
[1746117282105,23.64,152.63,152.55,1.9568]
[1746117282310,23.64,152.63,152.54,12.09942517]
[1746117282498,2.0908,152.62,152.53,23.64]
[1746117282703,4.0101,152.62,152.54,6.5532]
[1746117282898,4.0101,152.62,152.52,1.9683]
[1746117283413,6.5518,152.58,152.52,1.9683]
[1746117283609,23.64,152.58,152.52,1.9683]
[1746117284912,23.64,152.58,152.5,23.64]
[1746117285311,23.64,152.58,152.49,2.0681]
[1746117285515,35.73942517,152.58,152.49,2.0681]
[1746117285809,6.5531,152.55,152.49,2.0681]
[1746117286109,35.73942517,152.58,152.47,37.81402517]
[1746117286313,1.9558,152.57,152.47,37.81402517]
[1746117286513,1.9558,152.57,152.5,6.555]
[1746117286712,2.1051,152.56,152.47,25.7146]
[1746117287413,2.1051,152.56,152.5,6.5548]
[1746117287806,6.5535,152.54,152.51,6.5545]
[1746117288006,23.64,152.54,152.51,6.5545]
[1746117288212,23.64,152.54,152.47,37.81402517]
[1746117288403,23.64,152.54,152.52,6.5539]
[1746117290203,23.64,152.54,152.51,6.5544]
[1746117290408,30.1934,152.54,152.51,6.5544]
[1746117291006,23.64,152.54,152.51,6.5544]
[1746117291714,23.64,152.54,152.47,37.81402517]
[1746117292115,6.554,152.53,152.49,6.5552]
[1746117293219,6.554,152.53,152.5,6.555]
[1746117293516,30.1935,152.54,152.5,6.555]
[1746117294211,30.1935,152.54,152.47,37.81402517]
[1746117294416,23.64,152.58,152.5,12.09942517]
[1746117294814,23.64,152.58,152.53,6.5534]
[1746117295009,6.5523,152.57,152.53,6.5534]
[1746117295213,23.64,152.58,152.53,6.5534]
[1746117295517,6.5522,152.57,152.53,6.5534]
[1746117296610,6.5525,152.56,152.53,6.5534]
[1746117297219,6.5525,152.56,152.52,6.554]
[1746117297923,6.5525,152.56,152.53,6.5536]
[1746117299316,6.5523,152.57,152.5,12.09942517]
[1746117299517,23.64,152.58,152.5,12.09942517]
[1746117299719,23.64,152.58,152.51,1.921]
[1746117300119,30.1919,152.58,152.54,6.553]
[1746117300316,30.1919,152.58,152.51,1.921]
[1746117300621,30.1919,152.58,152.55,6.5528]
[1746117301815,23.64,152.58,152.53,12.09942517]
[1746117302213,30.1906,152.61,152.53,12.09942517]
[1746117302418,23.64,152.61,152.53,12.09942517]
[1746117302614,6.5513,152.59,152.53,12.09942517]
[1746117302917,23.64,152.61,152.53,12.09942517]
[1746117303225,23.64,152.61,152.52,1.9536]
[1746117303721,6.5513,152.59,152.55,6.5525]
[1746117304519,6.5513,152.59,152.56,6.5524]
[1746117305122,6.5513,152.59,152.55,6.5527]
[1746117305420,6.5513,152.59,152.52,1.9536]
[1746117305616,6.5513,152.59,152.55,6.5527]
[1746117305817,23.64,152.61,152.51,1.921]
[1746117306017,1.20421412,152.6,152.51,1.921]
[1746117306228,6.552,152.58,152.51,1.921]
[1746117306523,23.64,152.57,152.51,1.921]
[1746117306715,23.64,152.57,152.53,6.5534]
[1746117306916,30.1921,152.57,152.53,6.5534]
[1746117307627,6.5525,152.56,152.53,6.5534]
[1746117307825,23.64,152.57,152.53,6.5534]
[1746117308024,23.64,152.57,152.54,6.5532]
[1746117308622,30.1922,152.57,152.53,6.5535]
[1746117309131,6.5525,152.56,152.53,6.5535]
[1746117309524,23.64,152.57,152.48,25.759]
[1746117309728,6.5535,152.54,152.48,25.759]
[1746117310232,6.5535,152.54,152.48,23.64]
[1746117310729,2.0552,152.56,152.48,23.64]
[1746117310932,23.64,152.57,152.5,12.09942517]
[1746117312527,6.5525,152.56,152.53,6.5534]
[1746117315224,30.1921,152.57,152.53,6.5534]
[1746117315424,23.64,152.57,152.53,6.5534]
[1746117315830,23.64,152.57,152.5,12.09942517]
[1746117316030,23.64,152.6,152.53,12.09942517]
[1746117316430,6.5514,152.59,152.55,6.5528]
[1746117316634,6.5514,152.59,152.53,12.09942517]
[1746117317133,6.5514,152.59,152.56,6.5524]
[1746117317436,6.5514,152.59,152.53,12.09942517]
[1746117317631,6.5517,152.58,152.55,6.5526]
[1746117318434,6.5513,152.59,152.56,6.5524]
[1746117318635,23.64,152.6,152.53,12.09942517]
[1746117319025,23.64,152.6,152.58,6.5514]
[1746117319536,6.5508,152.6,152.57,6.5519]
[1746117320239,542.66,152.63,152.53,12.09942517]
[1746117320738,6.5505,152.61,152.58,6.5514]
[1746117321034,6.5505,152.61,152.53,12.09942517]
[1746117321247,6.5505,152.61,152.59,6.5511]
[1746117321634,6.5505,152.61,152.53,12.09942517]
[1746117321937,6.5508,152.6,152.53,12.09942517]
[1746117322238,542.66,152.63,152.53,12.09942517]
[1746117322427,544.6339,152.63,152.53,12.09942517]
[1746117322634,556.73332517,152.63,152.52,27.7616]
[1746117322934,558.81742517,152.63,152.52,27.7616]
[1746117323133,6.5516,152.58,152.52,27.7616]
[1746117323334,6.5516,152.58,152.55,6.5527]
[1746117324240,30.1913,152.59,152.56,6.5524]
[1746117325741,23.64,152.59,152.57,6.552]
[1746117327735,30.1912,152.59,152.56,6.5523]
[1746117327934,23.64,152.59,152.52,27.7616]
[1746117328339,6.5524,152.57,152.53,6.5535]
[1746117328835,6.5524,152.57,152.52,2.0542]
[1746117329036,6.5524,152.57,152.54,6.5532]
[1746117332238,6.5524,152.57,152.52,2.0542]
[1746117332839,6.5524,152.57,152.54,6.5531]
[1746117333038,6.5525,152.56,152.52,2.0542]
[1746117333237,23.62,152.55,152.48,14.17632517]
[1746117333635,23.62,152.55,152.48,2.0769]
[1746117334035,6.554,152.53,152.48,2.0769]
[1746117334540,6.554,152.53,152.5,6.555]
[1746117334734,6.5542,152.52,152.45,16.15032517]
[1746117334933,6.5542,152.52,152.46,23.62]
[1746117335139,23.62,152.55,152.49,6.5552]
[1746117335646,6.5541,152.53,152.49,6.5552]
[1746117336548,6.5542,152.52,152.48,6.5557]
[1746117337044,12.09942517,152.54,152.45,4.0509]
[1746117337243,12.09942517,152.54,152.45,1.9752]
[1746117337438,6.555,152.51,152.45,1.9752]
[1746117337639,30.195,152.51,152.45,1.9752]
[1746117338245,30.195,152.51,152.47,6.5561]
[1746117338444,30.195,152.51,152.45,1.9752]
[1746117338747,23.64,152.51,152.45,1.9752]
[1746117338941,23.64,152.51,152.44,87.33806]
[1746117339338,6.5557,152.49,152.46,6.5564]
[1746117339548,23.64,152.51,152.44,87.33806]
[1746117339842,6.5557,152.49,152.44,87.33806]
[1746117340045,23.64,152.51,152.44,87.33806]
[1746117340444,6.5555,152.49,152.45,6.5571]
[1746117341340,6.5555,152.49,152.46,6.5567]
[1746117341536,6.5555,152.49,152.44,87.33806]
[1746117341944,23.64,152.51,152.45,6.557]
[1746117342343,23.64,152.51,152.44,87.33806]
[1746117342547,6.5552,152.5,152.46,6.5564]
[1746117343246,23.64,152.51,152.46,6.5564]
[1746117343247,6.5555,152.49,152.46,6.5564]
[1746117344446,23.64,152.51,152.46,6.5564]
[1746117344447,6.5552,152.5,152.46,6.5564]
[1746117344651,23.64,152.51,152.44,93.89526]
[1746117344848,35.73942517,152.51,152.44,87.33806]
[1746117345250,1.20500638,152.5,152.44,87.33806]
[1746117345449,35.73942517,152.51,152.44,87.33806]
[1746117345846,6.5566,152.47,152.44,87.33806]
[1746117346046,23.64,152.47,152.44,87.33806]
[1746117346439,23.64,152.47,152.44,93.89546]
[1746117347853,30.1964,152.47,152.44,93.89546]
[1746117348451,23.64,152.47,152.44,93.89546]
[1746117349054,30.1967,152.47,152.44,87.33806]
[1746117350141,23.64,152.47,152.44,93.89546]
[1746117350756,23.64,152.47,152.44,87.33806]
[1746117351258,6.557,152.46,152.44,87.33806]
[1746117352547,6.5572,152.45,152.44,87.33806]
[1746117352855,23.64,152.47,152.44,87.33806]
[1746117353053,6.557,152.46,152.44,87.33806]
[1746117353255,23.64,152.47,152.44,87.33806]
[1746117353649,6.557,152.46,152.44,87.33806]
[1746117353955,23.64,152.47,152.44,87.33806]
[1746117354256,6.557,152.46,152.44,87.33806]
[1746117354956,30.1965,152.47,152.44,93.89556]
[1746117355151,30.1965,152.47,152.44,87.33806]
[1746117356061,6.5568,152.46,152.44,87.33806]
[1746117357651,30.1965,152.47,152.44,87.33806]
[1746117358357,23.64,152.47,152.44,93.89546]
[1746117358657,23.64,152.47,152.44,87.33806]
[1746117359750,30.1952,152.5,152.44,87.33806]
[1746117360146,23.64,152.5,152.44,87.33806]
[1746117360352,30.195,152.5,152.44,87.33806]
[1746117360959,30.195,152.5,152.47,6.556]
[1746117361157,23.64,152.5,152.47,6.556]
[1746117361354,23.64,152.5,152.44,87.33806]
[1746117362159,6.5557,152.49,152.46,6.5565]
[1746117364063,23.64,152.5,152.44,87.33806]
[1746117364865,23.64,152.53,152.46,12.09942517]
[1746117365562,23.64,152.53,152.46,16.00472517]
[1746117366156,6.5545,152.52,152.46,16.00472517]
[1746117366762,6.5545,152.52,152.49,6.5553]
[1746117367463,23.64,152.53,152.46,16.00472517]
[1746117367763,30.1939,152.53,152.5,6.5548]
[1746117367962,23.64,152.56,152.49,12.09942517]
[1746117368356,23.64,152.56,152.46,16.00472517]
[1746117368560,6.5538,152.53,152.46,16.00472517]
[1746117368764,35.73942517,152.56,152.46,16.00472517]
[1746117369068,6.5544,152.52,152.46,16.00472517]
[1746117369257,23.64,152.52,152.46,3.9053]
[1746117369569,6.5553,152.5,152.47,6.5561]
[1746117370159,6.5547,152.51,152.48,6.5559]
[1746117370464,23.64,152.52,152.46,3.9053]
[1746117370666,30.1944,152.52,152.49,6.5554]
[1746117371459,23.64,152.52,152.46,16.00472517]
[1746117371763,23.64,152.52,152.46,39.64472517]
[1746117371963,23.64,152.52,152.5,6.5548]
[1746117374066,23.64,152.52,152.46,39.64472517]
[1746117374266,23.64,152.52,152.46,3.9053]
[1746117374567,6.5553,152.5,152.47,6.5561]
[1746117374763,23.64,152.52,152.46,3.9053]
[1746117375167,6.5548,152.51,152.48,6.5557]
[1746117375867,6.5551,152.5,152.47,6.5561]
[1746117376067,6.5551,152.5,152.46,3.9053]
[1746117376458,6.5548,152.51,152.48,6.5559]
[1746117377372,23.64,152.52,152.49,6.5552]
[1746117377373,30.1943,152.52,152.49,6.5552]
[1746117378465,6.5547,152.51,152.48,6.5557]
[1746117379862,6.555,152.5,152.47,6.5561]
[1746117380067,23.64,152.52,152.46,1.9921]
[1746117380270,23.64,152.52,152.44,87.33806]
[1746117380469,6.5555,152.5,152.46,6.5564]
[1746117380767,23.64,152.52,152.46,6.5564]
[1746117381568,23.64,152.52,152.45,6.557]
[1746117382462,23.64,152.52,152.44,87.33806]
[1746117382662,6.5551,152.5,152.44,87.33806]
[1746117382864,23.64,152.52,152.44,87.33806]
[1746117383167,6.5553,152.5,152.44,87.33806]
[1746117384772,6.5553,152.5,152.46,6.5564]
[1746117385172,6.5553,152.5,152.44,87.33806]
[1746117386176,6.5555,152.49,152.47,6.5562]
[1746117387271,6.556,152.48,152.46,6.5566]
[1746117388376,6.556,152.48,152.45,6.557]
[1746117388673,6.5564,152.47,152.44,87.33806]
[1746117389073,6.5564,152.47,152.45,6.5572]
[1746117389263,6.556,152.48,152.45,6.5572]
[1746117390379,6.556,152.48,152.46,6.5567]
[1746117390680,6.556,152.48,152.44,87.33806]
[1746117391280,6.5556,152.49,152.46,6.5565]
[1746117391476,23.64,152.52,152.44,87.33806]
[1746117393180,6.5554,152.5,152.46,6.5565]
[1746117393477,6.5554,152.5,152.44,87.33806]
[1746117394676,6.5554,152.5,152.46,6.5564]
[1746117394976,6.5554,152.5,152.44,87.33806]
[1746117395677,23.64,152.52,152.44,87.33806]
[1746117396181,6.5565,152.47,152.44,87.33806]
[1746117396367,23.62,152.48,152.44,93.89546]
[1746117396878,30.1761,152.48,152.44,93.89546]
[1746117398479,30.1761,152.48,152.45,6.5571]
[1746117398778,30.1761,152.48,152.44,87.33806]
[1746117398971,30.1761,152.48,152.44,93.89546]
[1746117399167,6.5564,152.47,152.44,93.89546]
[1746117399779,30.1761,152.48,152.44,93.89546]
[1746117401179,30.1761,152.48,152.45,6.5571]
[1746117402782,30.1761,152.48,152.44,93.89536]
[1746117402973,30.1761,152.48,152.44,87.33806]
[1746117403375,30.1761,152.48,152.45,6.5571]
[1746117403574,23.62,152.48,152.44,87.33806]
[1746117403882,23.62,152.48,152.46,6.5565]
[1746117404079,23.62,152.48,152.44,87.33806]
[1746117405583,6.5572,152.45,152.44,87.33806]
[1746117407983,23.62,152.48,152.44,87.33806]
[1746117408484,6.5567,152.47,152.44,87.33806]
[1746117408683,23.62,152.48,152.44,87.33806]
[1746117409183,6.5571,152.46,152.44,87.33806]
[1746117412289,6.5572,152.45,152.44,87.33806]
[1746117413284,6.5564,152.47,152.44,87.33806]
[1746117413886,6.5564,152.47,152.44,93.89546]
[1746117414082,6.5566,152.47,152.44,87.33806]
[1746117414991,6.5566,152.47,152.44,93.89536]
[1746117415294,6.5566,152.47,152.44,87.33806]
[1746117416486,6.5566,152.47,152.44,93.89556]
[1746117418198,23.62,152.48,152.44,87.33806]
[1746117418385,12.09942517,152.53,152.44,87.33806]
[1746117418587,23.62,152.51,152.44,87.33806]
[1746117418799,30.1748,152.51,152.47,6.5559]
[1746117418996,30.1748,152.51,152.44,87.33806]
[1746117419304,23.62,152.51,152.48,6.5556]
[1746117419508,23.62,152.51,152.44,87.33806]
[1746117420198,23.62,152.51,152.48,6.5555]
[1746117420401,23.62,152.51,152.44,87.33806]
[1746117420807,23.62,152.51,152.48,6.5555]
[1746117421000,30.1747,152.51,152.48,6.5555]
[1746117421203,23.62,152.51,152.48,6.5555]
[1746117421708,23.62,152.51,152.44,87.33806]
[1746117423010,30.1746,152.51,152.49,6.5552]
[1746117424308,30.1746,152.51,152.48,6.5556]
[1746117424506,30.1746,152.51,152.44,87.33806]
[1746117424711,23.62,152.51,152.44,87.33806]
[1746117425009,23.62,152.51,152.48,6.5555]
[1746117425210,30.1748,152.51,152.48,6.5555]
[1746117425905,23.62,152.51,152.44,87.33806]
[1746117426102,23.62,152.51,152.45,23.62]
[1746117426303,23.62,152.54,152.46,12.09942517]
[1746117426506,6.554,152.53,152.46,16.29652517]
[1746117426704,23.62,152.54,152.47,1.972]
[1746117426909,6.5546,152.52,152.49,6.5552]
[1746117427502,6.5541,152.53,152.49,6.5554]
[1746117427701,23.62,152.54,152.49,6.5554]
[1746117428012,6.5544,152.52,152.49,6.5554]
[1746117428907,6.5539,152.53,152.47,1.972]
[1746117429208,23.62,152.58,152.48,12.09942517]
[1746117430043,6.5531,152.55,152.52,6.554]
[1746117430241,23.62,152.58,152.48,12.09942517]
[1746117430646,6.5527,152.56,152.53,6.5535]
[1746117431543,6.5522,152.57,152.54,6.553]
[1746117431749,23.62,152.58,152.49,23.62]
[1746117432237,30.1719,152.58,152.55,6.5528]
[1746117433150,23.62,152.58,152.56,6.5524]
[1746117433335,23.62,152.58,152.52,3.9435]
[1746117433752,23.62,152.58,152.53,2.0336]
[1746117433944,23.62,152.58,152.57,6.552]
[1746117435050,23.62,152.58,152.56,6.5523]
[1746117435354,23.62,152.58,152.53,2.0336]
[1746117436147,30.1718,152.58,152.55,6.5528]
[1746117437448,23.62,152.58,152.53,2.0336]
[1746117437850,30.1718,152.58,152.55,6.5527]
[1746117438049,23.62,152.58,152.53,2.0336]
[1746117438340,23.62,152.58,152.52,3.9435]
[1746117438542,6.5523,152.57,152.54,6.5531]
[1746117440916,23.62,152.58,152.52,10.4974]
[1746117441218,35.71942517,152.58,152.47,25.7189]
[1746117441520,6.553,152.55,152.51,6.5542]
[1746117441718,6.553,152.55,152.47,27.7162]
[1746117442022,6.553,152.55,152.51,6.5543]
[1746117442221,6.553,152.55,152.47,27.7162]
[1746117442719,6.5534,152.54,152.47,27.7162]
[1746117443220,6.5534,152.54,152.51,6.5544]
[1746117443919,6.5538,152.53,152.51,6.5544]
[1746117444114,6.5538,152.53,152.5,6.5548]
[1746117444314,35.71942517,152.58,152.47,27.7162]
[1746117444514,6.553,152.55,152.52,6.5542]
[1746117445015,6.5533,152.54,152.47,27.7162]
[1746117445214,35.71942517,152.58,152.47,27.7162]
[1746117445415,2.0724,152.57,152.47,27.7162]
[1746117445624,6.5531,152.55,152.52,6.5539]
[1746117445924,23.62,152.58,152.49,12.09942517]
[1746117446219,6.5521,152.57,152.53,6.5534]
[1746117446916,6.5521,152.57,152.54,6.5533]
[1746117447124,6.5521,152.57,152.5,2.105]
[1746117447620,30.1717,152.58,152.5,2.105]
[1746117448019,23.62,152.58,152.5,2.105]
[1746117448219,6.5525,152.56,152.5,2.105]
[1746117448422,23.62,152.58,152.5,2.105]
[1746117448823,23.62,152.58,152.51,6.5543]
[1746117449426,6.5533,152.54,152.51,6.5543]
[1746117449626,6.5533,152.54,152.5,8.6599]
[1746117449924,6.554,152.53,152.5,2.105]
[1746117450114,6.554,152.53,152.49,6.5552]
[1746117450317,23.6,152.54,152.47,27.7162]
[1746117450518,30.1536,152.54,152.47,27.7162]
[1746117450729,30.1536,152.54,152.5,6.5548]
[1746117451226,30.1536,152.54,152.51,6.5544]
[1746117453629,23.6,152.54,152.52,6.5541]
[1746117457233,23.6,152.54,152.47,27.7162]
[1746117457931,6.554,152.53,152.5,6.555]
[1746117460332,30.1535,152.54,152.51,6.5545]
[1746117460535,23.6,152.54,152.47,27.7162]
[1746117460729,6.554,152.53,152.5,6.5548]
[1746117462239,30.1535,152.54,152.51,6.5546]
[1746117462432,25.5567,152.57,152.49,12.09942517]
[1746117463035,23.6,152.57,152.5,1.9459]
[1746117463336,23.6,152.57,152.55,6.5526]
[1746117464337,23.6,152.57,152.56,6.5525]
[1746117464636,23.6,152.6,152.52,12.09942517]
[1746117464938,23.6,152.6,152.51,23.6]
[1746117465339,23.6,152.6,152.53,6.5534]
[1746117466140,6.5523,152.57,152.53,6.5534]
[1746117466331,6.5523,152.57,152.54,6.5533]
[1746117469741,6.5516,152.58,152.51,23.6]
[1746117470229,23.6,152.6,152.51,23.6]
[1746117470429,23.6,152.6,152.52,1.9677]
[1746117470739,6.5512,152.59,152.56,6.5521]
[1746117470931,23.6,152.6,152.56,6.5521]
[1746117471836,6.5514,152.59,152.56,6.5521]
[1746117472037,23.6,152.6,152.52,1.9677]
[1746117472535,6.5523,152.57,152.53,6.5535]
[1746117473941,6.5523,152.57,152.54,6.5533]
[1746117474132,6.5518,152.58,152.54,6.5533]
[1746117475445,23.6,152.6,152.52,1.9677]
[1746117475949,23.6,152.6,152.55,6.5526]